bitfinex/quotes_SOLUSD_20251119
["timestamp","ask_amount","ask_price","bid_price","bid_amount"]
[1763582562886,27.79702858,131.94,131.92,1.83889999]
[1763582563093,7.19606858,131.93,131.92,1.83889999]
[1763582564593,18.12096,131.92,131.91,0.2]
[1763582564796,27.79702858,131.92,131.91,2.03889999]
[1763582565206,37.58585627,131.92,131.91,0.2]
[1763582567796,44.78192485,131.92,131.91,0.2]
[1763582568389,30.38978769,131.92,131.91,0.2]
[1763582568632,18.12096,131.88,131.85,1.83889999]
[1763582568933,7.19606858,131.86,131.83,1.83889999]
[1763582569232,11.58882769,131.87,131.84,1.83889999]
[1763582569233,19.92096,131.85,131.84,1.83889999]
[1763582570528,27.11702858,131.85,131.84,1.83889999]
[1763582573136,27.77702858,131.85,131.82,0.2]
[1763582573306,7.19606858,131.83,131.82,0.2]
[1763582573505,8.99606858,131.83,131.82,2.03889999]
[1763582573701,8.99606858,131.83,131.82,0.2]
[1763582573897,9.65606858,131.83,131.82,0.2]
[1763582574530,8.99606858,131.83,131.82,0.2]
[1763582575614,18.12096,131.84,131.82,0.2]
[1763582575615,7.19606858,131.84,131.83,1.83889999]
[1763582575809,1.8,131.84,131.83,1.83889999]
[1763582576013,7.19606858,131.85,131.83,2.49889999]
[1763582576216,1.8,131.84,131.83,2.49889999]
[1763582577205,8.99606858,131.84,131.83,1.83889999]
[1763582578410,8.99606858,131.84,131.83,2.49889999]
[1763582578614,8.99606858,131.84,131.83,1.83889999]
[1763582579309,8.99606858,131.84,131.83,2.49889999]
[1763582580229,7.19606858,131.86,131.85,1.83889999]
[1763582580436,8.99606858,131.86,131.85,1.83889999]
[1763582581010,9.65606858,131.86,131.85,1.83889999]
[1763582581428,9.65606858,131.86,131.83,1.83889999]
[1763582581742,25.31702858,131.84,131.82,2.03889999]
[1763582581945,8.99606858,131.83,131.82,2.03889999]
[1763582582244,1.8,131.83,131.82,2.03889999]
[1763582582544,8.99606858,131.83,131.82,2.03889999]
[1763582582912,9.65606858,131.83,131.82,0.2]
[1763582583112,19.44489627,131.83,131.82,0.2]
[1763582584457,37.56585627,131.83,131.82,0.2]
[1763582584809,19.44489627,131.83,131.82,0.2]
[1763582585543,19.44489627,131.83,131.81,0.2]
[1763582585544,9.78882769,131.82,131.81,0.2]
[1763582585736,35.10585627,131.81,131.8,0.2]
[1763582586045,9.78882769,131.8,131.78,0.2]
[1763582586214,18.12096,131.78,131.77,0.2]
[1763582586535,9.78882769,131.77,131.76,0.2]
[1763582586737,17.64489627,131.77,131.76,0.2]
[1763582587242,35.76585627,131.77,131.76,0.2]
[1763582587544,24.84096485,131.77,131.76,0.2]
[1763582587741,27.90978769,131.74,131.73,0.2]
[1763582587921,36.90585627,131.74,131.73,0.2]
[1763582588119,37.56585627,131.74,131.73,0.2]
[1763582588345,37.56585627,131.74,131.73,0.86]
[1763582588346,25.31702858,131.74,131.73,0.86]
[1763582588643,27.11702858,131.74,131.73,0.86]
[1763582588940,18.12096,131.76,131.74,1.83889999]
[1763582589145,7.21547998,131.75,131.74,1.83889999]
[1763582589444,0.66,131.81,131.78,1.83889999]
[1763582589642,7.21547998,131.8,131.79,1.83889999]
[1763582589937,9.01547998,131.8,131.79,1.83889999]
[1763582594473,9.78882769,131.84,131.82,1.83889999]
[1763582594647,9.67547998,131.83,131.82,1.83889999]
[1763582594846,9.67547998,131.83,131.79,0.66]
[1763582594847,27.79643998,131.83,131.81,1.83889999]
[1763582595054,7.87547998,131.82,131.8,1.83889999]
[1763582595255,1.8,131.81,131.8,1.83889999]
[1763582595438,9.01547998,131.81,131.8,1.83889999]
[1763582596263,27.13643998,131.81,131.8,1.83889999]
[1763582597680,19.92096,131.81,131.8,1.83889999]
[1763582598036,27.13643998,131.81,131.8,1.83889999]
[1763582598860,19.92096,131.81,131.8,1.83889999]
[1763582599055,27.13643998,131.81,131.8,1.83889999]
[1763582599243,18.12096,131.78,131.77,1.83889999]
[1763582599433,27.13643998,131.78,131.76,1.83889999]
[1763582599667,25.33643998,131.77,131.76,2.49889999]
[1763582599866,25.33643998,131.77,131.76,1.83889999]
[1763582600561,7.21547998,131.78,131.76,2.49889999]
[1763582600753,7.21547998,131.79,131.78,1.83889999]
[1763582600959,9.01547998,131.8,131.78,1.83889999]
[1763582601145,9.01547998,131.8,131.78,2.49889999]
[1763582601346,9.01547998,131.8,131.79,1.83889999]
[1763582602542,25.33643998,131.81,131.79,2.49889999]
[1763582602746,19.92096,131.81,131.8,1.83889999]
[1763582602972,27.13643998,131.81,131.8,1.83889999]
[1763582603872,27.85643998,131.81,131.79,1.83889999]
[1763582604073,7.21547998,131.8,131.79,1.83889999]
[1763582604456,7.21547998,131.8,131.78,1.83889999]
[1763582604457,7.93547998,131.8,131.78,1.83889999]
[1763582604768,9.01547998,131.79,131.78,1.83889999]
[1763582605668,9.01547998,131.79,131.73,7.41547998]
[1763582605669,9.70547998,131.79,131.77,1.83889999]
[1763582605863,25.33643998,131.78,131.77,1.83889999]
[1763582606065,26.02643998,131.78,131.77,1.83889999]
[1763582606759,25.33643998,131.78,131.77,1.83889999]
[1763582606948,18.12096,131.78,131.77,1.83889999]
[1763582607151,26.02643998,131.78,131.77,1.83889999]
[1763582608265,26.02643998,131.78,131.76,1.83889999]
[1763582608452,9.01547998,131.77,131.76,1.83889999]
[1763582608662,9.70547998,131.77,131.76,1.83889999]
[1763582608873,9.01547998,131.77,131.76,1.83889999]
[1763582610878,1.8,131.77,131.76,1.83889999]
[1763582611183,27.13643998,131.78,131.77,1.83889999]
[1763582611482,27.82643998,131.78,131.77,1.83889999]
[1763582612167,27.13643998,131.78,131.76,1.83889999]
[1763582612368,7.90547998,131.77,131.76,1.83889999]
[1763582612697,7.90547998,131.77,131.75,1.83889999]
[1763582612860,7.21547998,131.77,131.76,1.83889999]
[1763582613061,9.70547998,131.77,131.75,1.83889999]
[1763582613378,7.21547998,131.76,131.75,1.83889999]
[1763582614486,7.21547998,131.76,131.75,2.52889999]
[1763582614686,9.01547998,131.77,131.75,2.52889999]
[1763582614882,25.33643998,131.78,131.77,1.83889999]
[1763582615191,27.13643998,131.78,131.77,1.83889999]
[1763582615362,27.82643998,131.78,131.77,1.83889999]
[1763582615682,27.13643998,131.78,131.77,1.83889999]
[1763582615882,27.82643998,131.78,131.76,1.83889999]
[1763582616060,7.21547998,131.77,131.76,1.83889999]
[1763582616262,7.90547998,131.77,131.76,1.83889999]
[1763582616474,7.90547998,131.77,131.75,1.83889999]
[1763582616677,9.01547998,131.76,131.75,1.83889999]
[1763582616878,4.83041587,131.76,131.75,1.83889999]
[1763582618199,4.83041587,131.76,131.73,2.03889999]
[1763582618200,5.52041587,131.76,131.73,2.03889999]
[1763582618379,30.94020356,131.74,131.73,0.2]
[1763582618578,1.8,131.74,131.73,2.03889999]
[1763582618769,6.53682347,131.74,131.73,2.03889999]
[1763582619587,9.78882769,131.78,131.74,1.83889999]
[1763582619786,1.8,131.77,131.76,1.83889999]
[1763582619997,6.53682347,131.77,131.76,1.83889999]
[1763582621076,6.53682347,131.77,131.75,1.83889999]
[1763582621276,6.53682347,131.77,131.76,1.83889999]
[1763582621695,4.73682347,131.77,131.76,2.52889999]
[1763582621883,6.53682347,131.77,131.76,1.83889999]
[1763582622808,13.10398672,131.77,131.76,1.83889999]
[1763582623180,18.12096,131.79,131.76,1.83889999]
[1763582623381,18.12096,131.79,131.78,1.83889999]
[1763582623604,31.22494672,131.79,131.78,1.83889999]
[1763582625306,29.42494672,131.79,131.78,1.83889999]
[1763582625490,31.22494672,131.79,131.78,1.83889999]
[1763582626110,19.92096,131.79,131.78,1.83889999]
[1763582626313,31.22494672,131.79,131.78,1.83889999]
[1763582628890,31.22494672,131.79,131.77,1.83889999]
[1763582629216,18.12096,131.79,131.78,1.83889999]
[1763582629402,31.91494672,131.79,131.78,1.83889999]
[1763582629584,0.69,131.82,131.78,2.52889999]
[1763582629781,22.89281441,131.83,131.81,1.83889999]
[1763582629988,29.42494672,131.82,131.81,1.83889999]
[1763582630190,11.30398672,131.82,131.81,1.83889999]
[1763582630408,11.30398672,131.82,131.81,2.48889999]
[1763582630909,11.30398672,131.82,131.81,1.83889999]
[1763582631117,13.10398672,131.82,131.81,1.83889999]
[1763582632492,13.10398672,131.82,131.81,2.48889999]
[1763582632695,13.10398672,131.82,131.81,1.83889999]
[1763582634299,13.10398672,131.82,131.81,2.48889999]
[1763582635122,13.10398672,131.82,131.81,1.83889999]
[1763582636188,18.20880114,131.82,131.81,1.83889999]
[1763582637026,18.12096,131.81,131.8,1.83889999]
[1763582637187,35.18999449,131.81,131.79,1.83889999]
[1763582637394,13.10398672,131.8,131.79,1.83889999]
[1763582639697,13.76398672,131.8,131.78,1.83889999]
[1763582639904,18.12096,131.78,131.76,1.83889999]
[1763582640223,13.10398672,131.77,131.75,1.83889999]
[1763582640425,11.96398672,131.76,131.75,1.83889999]
[1763582640724,21.75281441,131.76,131.75,1.83889999]
[1763582641022,28.65622468,131.76,131.75,1.83889999]
[1763582641202,28.65622468,131.76,131.74,1.83889999]
[1763582641397,11.96398672,131.75,131.73,2.03889999]
[1763582641618,13.76398672,131.74,131.73,2.03889999]
[1763582642336,13.10398672,131.74,131.73,2.03889999]
[1763582642622,19.92096,131.74,131.73,2.68889999]
[1763582642823,29.42494672,131.77,131.76,1.83889999]
[1763582643038,34.52701151,131.77,131.76,1.83889999]
[1763582643201,29.42494672,131.77,131.76,1.83889999]
[1763582644015,35.1905644,131.77,131.75,1.83889999]
[1763582644215,13.76398672,131.76,131.75,1.83889999]
[1763582644413,13.10398672,131.76,131.75,1.83889999]
[1763582644738,18.8691006,131.76,131.74,1.83889999]
[1763582645037,18.12096,131.74,131.73,0.2]
[1763582645337,24.65834201,131.74,131.73,0.2]
[1763582645519,25.31834201,131.74,131.73,2.03889999]
[1763582647005,18.12096,131.75,131.74,1.83889999]
[1763582647234,18.12096,131.75,131.74,2.48889999]
[1763582647429,22.85834201,131.76,131.75,1.83889999]
[1763582647602,24.65834201,131.76,131.75,1.83889999]
[1763582648828,11.30166419,131.78,131.77,1.83889999]
[1763582649034,13.10166419,131.78,131.77,1.83889999]
[1763582649723,18.21475523,131.78,131.77,1.83889999]
[1763582650319,18.21478183,131.78,131.77,1.83889999]
[1763582650724,18.12096,131.76,131.74,1.83889999]
[1763582650926,13.10166419,131.75,131.74,1.83889999]
[1763582651239,31.22262419,131.76,131.75,0.65]
[1763582651424,31.22262419,131.76,131.75,1.83889999]
[1763582651619,19.92096,131.76,131.75,1.83889999]
[1763582651814,18.12096,131.76,131.75,1.83889999]
[1763582652021,19.92096,131.76,131.75,1.83889999]
[1763582652216,31.22262419,131.76,131.75,1.83889999]
[1763582652422,18.12096,131.78,131.76,1.83889999]
[1763582652725,1.8,131.77,131.76,2.48889999]
[1763582654325,18.12096,131.78,131.77,1.83889999]
[1763582654519,18.12096,131.78,131.77,2.48889999]
[1763582655451,1.8,131.79,131.78,1.83889999]
[1763582655655,18.12096,131.8,131.79,2.48889999]
[1763582656149,1.8,131.81,131.8,1.83889999]
[1763582656443,13.10166419,131.81,131.8,1.83889999]
[1763582657158,13.76166419,131.81,131.8,1.83889999]
[1763582657525,18.87091866,131.81,131.79,1.83889999]
[1763582657716,18.12096,131.79,131.78,1.83889999]
[1763582657929,36.3309151,131.79,131.78,1.83889999]
[1763582658129,31.88262419,131.79,131.77,1.83889999]
[1763582658324,11.30166419,131.78,131.77,1.83889999]
[1763582658543,11.30166419,131.78,131.76,1.83889999]
[1763582658751,13.10166419,131.77,131.76,1.83889999]
[1763582659442,1.8,131.77,131.76,2.48889999]
[1763582659637,13.10166419,131.77,131.76,1.83889999]
[1763582660653,18.12096,131.78,131.77,1.83889999]
[1763582660949,31.22262419,131.78,131.77,1.83889999]
[1763582662039,29.42262419,131.78,131.77,1.83889999]
[1763582662236,31.22262419,131.78,131.77,1.83889999]
[1763582662442,20.64096,131.78,131.76,1.83889999]
[1763582662633,11.30166419,131.77,131.76,1.83889999]
[1763582662834,11.30166419,131.77,131.76,2.52889999]
[1763582663140,1.8,131.77,131.76,2.52889999]
[1763582663653,11.30166419,131.8,131.79,1.83889999]
[1763582666735,17.116457,131.8,131.78,1.83889999]
[1763582667043,13.81166419,131.79,131.78,1.83889999]
[1763582667452,18.12096,131.77,131.76,1.83889999]
[1763582667667,31.22262419,131.77,131.75,1.83889999]
[1763582667837,20.63096,131.77,131.76,1.83889999]
[1763582668033,31.22262419,131.77,131.76,1.83889999]
[1763582668248,36.32710803,131.77,131.76,1.83889999]
[1763582668647,37.03710803,131.77,131.75,1.83889999]
[1763582668844,18.12096,131.74,131.73,2.03889999]
[1763582669071,24.6571503,131.74,131.73,0.2]
[1763582669272,30.1033406,131.74,131.73,0.2]
[1763582669570,35.2046378,131.74,131.73,0.2]
[1763582669773,44.99346549,131.74,131.73,0.2]
[1763582670981,34.53693807,131.74,131.73,0.2]
[1763582671141,31.23564087,131.74,131.73,2.03889999]
[1763582671350,31.94564087,131.74,131.73,2.03889999]
[1763582671678,29.43564087,131.74,131.73,2.03889999]
[1763582671850,31.23564087,131.74,131.73,2.03889999]
[1763582672956,31.94564087,131.74,131.73,2.03889999]
[1763582673154,31.94564087,131.74,131.73,0.2]
[1763582676864,31.23564087,131.74,131.73,0.2]
[1763582677042,31.23564087,131.74,131.73,2.03889999]
[1763582677246,31.94564087,131.74,131.73,2.03889999]
[1763582677447,31.94564087,131.74,131.73,0.2]
[1763582677647,31.94564087,131.74,131.73,2.03889999]
[1763582678661,31.94564087,131.74,131.73,0.2]
[1763582678863,31.94564087,131.74,131.73,2.03889999]
[1763582679068,31.23564087,131.74,131.73,2.03889999]
[1763582679388,31.23564087,131.74,131.73,2.73889999]
[1763582679947,11.31468087,131.76,131.75,1.83889999]
[1763582680152,13.11468087,131.76,131.75,1.83889999]
[1763582680769,27.13684603,131.76,131.75,1.83889999]
[1763582681661,25.33684603,131.76,131.75,1.83889999]
[1763582681860,6.38975271,131.8,131.75,2.53889999]
[1763582681861,7.21588603,131.77,131.75,2.53889999]
[1763582682066,9.01588603,131.77,131.76,2.53889999]
[1763582682947,9.01588603,131.77,131.76,1.83889999]
[1763582683148,24.61532594,131.77,131.75,1.83889999]
[1763582683371,13.02764444,131.76,131.75,1.83889999]
[1763582683675,18.12096,131.75,131.74,1.83889999]
[1763582683874,27.84684603,131.75,131.73,0.2]
[1763582684082,26.04684603,131.74,131.73,0.2]
[1763582684283,26.04684603,131.74,131.73,2.03889999]
[1763582684582,25.33684603,131.74,131.73,2.03889999]
[1763582684755,25.33684603,131.74,131.73,0.2]
[1763582684955,25.33684603,131.74,131.73,2.03889999]
[1763582687381,26.04684603,131.74,131.73,0.2]
[1763582687758,31.15094013,131.74,131.73,0.2]
[1763582688381,40.93976782,131.74,131.73,0.2]
[1763582692576,40.93976782,131.74,131.69,2.03889999]
[1763582692577,40.93976782,131.74,131.69,0.2]
[1763582692794,21.15467473,131.7,131.69,2.74889999]
[1763582692984,22.95467473,131.7,131.69,2.74889999]
[1763582693476,22.95467473,131.7,131.69,0.91]
[1763582693667,22.95467473,131.7,131.69,2.74889999]
[1763582695678,4.83371473,131.7,131.69,2.74889999]
[1763582697306,4.83371473,131.7,131.69,0.2]
[1763582697507,4.83371473,131.7,131.69,2.03889999]
[1763582698505,4.83371473,131.7,131.69,2.74889999]
[1763582699311,1.8,131.7,131.69,2.03889999]
[1763582699498,4.83371473,131.7,131.69,0.2]
[1763582700014,4.83371473,131.7,131.69,2.03889999]
[1763582700190,1.8,131.7,131.69,2.74889999]
[1763582700389,3.03371473,131.7,131.69,2.74889999]
[1763582700707,4.83371473,131.7,131.69,2.74889999]
[1763582700896,4.83371473,131.7,131.69,2.03889999]
[1763582701215,15.29254242,131.7,131.69,0.2]
[1763582701431,18.12096,131.67,131.65,1.83889999]
[1763582701723,4.83371473,131.66,131.65,1.83889999]
[1763582702089,4.83371473,131.66,131.65,2.54889999]
[1763582703426,4.83371473,131.66,131.65,1.83889999]
[1763582704194,18.12096,131.72,131.66,0.71]
[1763582704429,1.8,131.74,131.71,1.83889999]
[1763582704730,3.03371473,131.72,131.71,1.83889999]
[1763582704928,4.83371473,131.72,131.71,1.83889999]
[1763582706218,18.12096,131.69,131.65,0.71]
[1763582706435,3.03371473,131.66,131.65,1.83889999]
[1763582707210,1.82,131.66,131.65,1.83889999]
[1763582707545,4.85371473,131.66,131.65,1.83889999]
[1763582707747,18.12096,131.68,131.65,2.54889999]
[1763582707921,18.12096,131.7,131.69,1.83889999]
[1763582708239,22.97467473,131.7,131.69,1.83889999]
[1763582709034,22.97467473,131.7,131.65,1.83889999]
[1763582709035,18.12096,131.67,131.65,1.83889999]
[1763582709323,4.85371473,131.66,131.65,1.83889999]
[1763582709910,22.97467473,131.66,131.65,1.83889999]
[1763582710532,32.76350242,131.66,131.65,1.83889999]
[1763582711442,29.72978769,131.66,131.65,1.83889999]
[1763582711617,32.76350242,131.66,131.65,1.83889999]
[1763582713116,29.72978769,131.66,131.65,1.83889999]
[1763582713444,32.76350242,131.66,131.65,1.83889999]
[1763582714235,32.76350242,131.66,131.64,1.83889999]
[1763582714557,29.72978769,131.66,131.65,1.83889999]
[1763582714925,32.76350242,131.66,131.65,1.83889999]
[1763582715526,29.72978769,131.66,131.65,1.83889999]
[1763582716335,18.12096,131.66,131.65,2.54889999]
[1763582716530,18.12096,131.68,131.67,1.83889999]
[1763582717034,3.03371473,131.72,131.69,1.83889999]
[1763582717237,1.82,131.71,131.69,1.83889999]
[1763582717442,3.70371473,131.72,131.7,1.83889999]
[1763582717626,1.82,131.71,131.7,1.83889999]
[1763582717847,18.12096,131.7,131.69,1.83889999]
[1763582718755,18.79096,131.7,131.69,1.83889999]
[1763582719542,18.12096,131.7,131.69,1.83889999]
[1763582719837,18.79096,131.7,131.69,1.83889999]
[1763582722058,18.12096,131.7,131.69,1.83889999]
[1763582722773,1.82,131.7,131.69,1.83889999]
[1763582723257,9.78882769,131.73,131.71,1.83889999]
[1763582723258,5.10424127,131.73,131.71,1.83889999]
[1763582723578,1.82,131.72,131.71,1.83889999]
[1763582723870,1.82,131.72,131.7,1.83889999]
[1763582724045,18.12096,131.71,131.7,1.83889999]
[1763582725159,18.12096,131.72,131.71,1.83889999]
[1763582725461,19.94096,131.72,131.71,1.83889999]
[1763582725868,3.03371473,131.74,131.73,1.83889999]
[1763582726154,32.76350242,131.74,131.73,1.83889999]
[1763582726360,38.56174811,131.74,131.73,1.83889999]
[1763582726744,12.82254242,131.76,131.75,1.83889999]
[1763582726955,13.51254242,131.76,131.75,1.83889999]
[1763582727260,31.63350242,131.76,131.75,1.83889999]
[1763582727555,38.56251305,131.76,131.75,1.83889999]
[1763582727759,33.70879832,131.76,131.75,1.83889999]
[1763582727947,36.74251305,131.76,131.75,1.83889999]
[1763582728150,38.56251305,131.76,131.72,0.24889999]
[1763582728342,27.90978769,131.73,131.72,0.24889999]
[1763582728542,29.72978769,131.73,131.72,0.96889999]
[1763582728742,18.12096,131.73,131.72,0.96889999]
[1763582728947,6.38975271,131.78,131.73,0.24889999]
[1763582728948,21.15467473,131.74,131.73,0.24889999]
[1763582729157,28.08548961,131.74,131.73,0.24889999]
[1763582729347,23.23177488,131.74,131.73,0.96889999]
[1763582729558,18.12096,131.74,131.73,0.96889999]
[1763582729864,19.94096,131.74,131.73,0.96889999]
[1763582731644,19.94096,131.74,131.73,0.24889999]
[1763582731870,22.97467473,131.74,131.73,0.24889999]
[1763582732050,32.76350242,131.74,131.73,0.24889999]
[1763582732666,29.72978769,131.74,131.73,0.24889999]
[1763582732884,30.94350242,131.74,131.73,0.24889999]
[1763582733081,32.76350242,131.74,131.73,0.24889999]
[1763582733803,32.76350242,131.74,131.73,0.96889999]
[1763582733998,32.76350242,131.74,131.73,0.24889999]
[1763582734165,9.78882769,131.73,131.71,0.24889999]
[1763582734367,32.76350242,131.72,131.71,0.24889999]
[1763582734674,37.87195399,131.72,131.71,0.24889999]
[1763582735276,9.78882769,131.71,131.7,0.24889999]
[1763582735494,12.82254242,131.71,131.7,0.24889999]
[1763582735702,12.82254242,131.71,131.7,0.96889999]
[1763582737485,12.82254242,131.71,131.7,0.24889999]
[1763582737994,12.82254242,131.71,131.7,0.96889999]
[1763582738597,11.58882769,131.71,131.7,0.96889999]
[1763582739570,14.62254242,131.71,131.7,0.96889999]
[1763582739770,11.58882769,131.71,131.7,0.96889999]
[1763582740089,11.58882769,131.71,131.7,0.24889999]
[1763582741172,16.32794342,131.71,131.7,0.24889999]
[1763582742168,22.02505599,131.71,131.69,0.24889999]
[1763582742488,27.90978769,131.69,131.68,0.24889999]
[1763582742695,39.55601599,131.69,131.68,0.24889999]
[1763582742891,34.44890342,131.69,131.68,0.24889999]
[1763582743878,14.52794342,131.69,131.68,0.24889999]
[1763582744083,14.52794342,131.69,131.68,0.96889999]
[1763582744084,11.58882769,131.69,131.68,0.96889999]
[1763582745100,9.78882769,131.69,131.68,0.96889999]
[1763582745294,1.8,131.69,131.68,0.96889999]
[1763582745484,14.52794342,131.72,131.71,0.24889999]
[1763582745685,16.32794342,131.72,131.71,0.24889999]
[1763582745895,16.32794342,131.72,131.71,0.96889999]
[1763582746380,16.32794342,131.72,131.71,0.24889999]
[1763582747506,11.58882769,131.72,131.71,0.96889999]
[1763582747894,9.78882769,131.72,131.71,0.96889999]
[1763582748101,11.58882769,131.72,131.71,0.96889999]
[1763582750108,16.32794342,131.72,131.71,0.24889999]
[1763582750824,16.32794342,131.72,131.71,0.90889999]
[1763582751637,11.58882769,131.72,131.71,0.90889999]
[1763582751818,16.32794342,131.72,131.71,0.24889999]
[1763582752133,16.32794342,131.72,131.71,0.90889999]
[1763582752134,11.58882769,131.72,131.71,0.90889999]
[1763582755940,9.78882769,131.74,131.73,0.24889999]
[1763582756107,11.58882769,131.74,131.73,0.24889999]
[1763582756812,11.58882769,131.74,131.73,0.90889999]
[1763582757312,14.52794342,131.76,131.75,0.24889999]
[1763582757516,16.32794342,131.76,131.75,0.24889999]
[1763582757704,34.44890342,131.76,131.75,0.24889999]
[1763582757910,34.44890342,131.76,131.71,56.0]
[1763582757911,40.15200566,131.76,131.74,0.24889999]
[1763582758105,20.23104566,131.75,131.74,0.24889999]
[1763582758310,32.64890342,131.75,131.74,0.24889999]
[1763582758645,37.76200566,131.75,131.74,0.24889999]
[1763582760209,39.56200566,131.75,131.74,0.24889999]
[1763582764747,27.90978769,131.75,131.74,0.90889999]
[1763582764912,29.70978769,131.75,131.74,0.90889999]
[1763582765113,11.11968778,131.8,131.78,0.24889999]
[1763582765331,1.8,131.79,131.78,0.24889999]
[1763582765512,29.70978769,131.79,131.78,0.24889999]
[1763582765712,33.0282712,131.79,131.78,0.90889999]
[1763582765915,16.7073112,131.79,131.78,0.90889999]
[1763582766112,29.70978769,131.79,131.78,0.90889999]
[1763582766337,34.8282712,131.79,131.78,0.90889999]
[1763582766726,16.7073112,131.79,131.78,0.90889999]
[1763582767133,29.70978769,131.79,131.78,0.90889999]
[1763582767346,34.8282712,131.79,131.78,0.90889999]
[1763582768352,9.78882769,131.79,131.78,0.90889999]
[1763582768527,11.58882769,131.79,131.78,0.90889999]
[1763582768841,7.17057205,131.84,131.83,0.24889999]
[1763582768842,0.2,131.84,131.83,0.24889999]
[1763582769044,2.0,131.84,131.83,0.24889999]
[1763582769238,6.73911573,131.84,131.83,0.90889999]
[1763582769445,6.73911573,131.84,131.83,0.24889999]
[1763582769626,16.52794342,131.84,131.83,0.24889999]
[1763582770043,34.64890342,131.84,131.83,0.24889999]
[1763582773548,34.64890342,131.84,131.83,0.90889999]
[1763582774528,16.52794342,131.84,131.83,0.90889999]
[1763582774943,16.52794342,131.84,131.83,0.24889999]
[1763582775358,16.52794342,131.84,131.83,0.90889999]
[1763582775559,16.52794342,131.84,131.83,0.24889999]
[1763582776272,9.78882769,131.83,131.82,0.24889999]
[1763582776458,14.52794342,131.83,131.82,0.24889999]
[1763582776641,14.52794342,131.83,131.82,0.90889999]
[1763582777054,9.78882769,131.83,131.82,0.24889999]
[1763582777662,9.78882769,131.81,131.8,0.24889999]
[1763582777851,34.44890342,131.81,131.8,0.24889999]
[1763582778941,4.73911573,131.83,131.8,0.90889999]
[1763582779143,28.10978769,131.84,131.83,0.24889999]
[1763582779366,11.78882769,131.84,131.83,0.90889999]
[1763582779742,0.2,131.84,131.83,0.90889999]
[1763582779943,2.0,131.84,131.83,0.90889999]
[1763582781045,11.78882769,131.84,131.83,0.90889999]
[1763582781869,16.52794342,131.84,131.83,0.24889999]
[1763582782043,16.52794342,131.84,131.83,0.95889999]
[1763582782458,11.78882769,131.84,131.83,0.95889999]
[1763582785753,11.78882769,131.84,131.83,0.96889999]
[1763582785952,16.52794342,131.84,131.83,0.24889999]
[1763582788978,16.52794342,131.84,131.83,0.96889999]
[1763582789353,14.72794342,131.84,131.83,0.24889999]
[1763582789553,16.52794342,131.84,131.83,0.24889999]
[1763582789974,11.78882769,131.84,131.83,0.96889999]
[1763582790675,9.98882769,131.84,131.83,0.96889999]
[1763582790852,11.78882769,131.84,131.83,0.96889999]
[1763582792854,16.52794342,131.84,131.83,0.24889999]
[1763582793067,16.52794342,131.84,131.83,0.96889999]
[1763582793354,9.98882769,131.84,131.83,0.96889999]
[1763582793551,11.78882769,131.84,131.83,56.96889999]
[1763582793751,8.54882769,131.84,131.83,56.96889999]
[1763582793979,1.8,131.85,131.84,0.24889999]
[1763582794222,0.2,131.88,131.87,0.24889999]
[1763582794486,2.0,131.88,131.87,0.24889999]
[1763582795883,11.78882769,131.88,131.87,0.24889999]
[1763582796777,12.48882769,131.88,131.87,0.24889999]
[1763582797674,11.78882769,131.88,131.87,0.24889999]
[1763582798662,12.48882769,131.88,131.87,0.24889999]
[1763582799065,11.78882769,131.88,131.87,0.24889999]
[1763582799562,17.22794342,131.88,131.87,0.24889999]
[1763582802802,15.51396081,131.88,131.87,0.24889999]
[1763582803403,14.81396081,131.88,131.87,0.24889999]
[1763582803602,11.78882769,131.88,131.87,0.24889999]
[1763582804105,9.98882769,131.88,131.87,0.24889999]
[1763582804295,11.78882769,131.88,131.87,0.24889999]
[1763582805999,9.98882769,131.88,131.87,0.39889999]
[1763582806209,11.78882769,131.88,131.87,0.39889999]
[1763582807590,9.98882769,131.88,131.87,0.39889999]
[1763582807788,0.2,131.88,131.87,0.39889999]
[1763582810184,0.2,131.89,131.87,0.39889999]
[1763582810185,0.2,131.89,131.88,0.24889999]
[1763582810402,0.2,131.91,131.9,0.24889999]
[1763582810913,0.2,131.91,131.9,0.39889999]
[1763582811407,9.98882769,131.91,131.9,0.39889999]
[1763582811593,9.98882769,131.91,131.9,0.24889999]
[1763582812626,13.67396081,131.91,131.9,0.24889999]
[1763582812983,10.64882769,131.91,131.9,0.24889999]
[1763582815214,13.67396081,131.91,131.9,0.24889999]
[1763582816998,10.64882769,131.91,131.9,0.24889999]
[1763582817295,13.67396081,131.91,131.9,0.24889999]
[1763582820806,15.47396081,131.91,131.9,0.24889999]
[1763582821000,15.47396081,131.91,131.84,55.9]
[1763582821001,9.78882769,131.87,131.84,55.9]
[1763582821201,9.78882769,131.85,131.84,55.9]
[1763582822122,9.78882769,131.85,131.84,56.05]
[1763582822808,9.78882769,131.85,131.84,55.9]
[1763582823112,9.78882769,131.85,131.84,56.05]